[Event "CIS Master Groups 2024"]
[Site "Vasto"]
[Date "2024.04.14"]
[Round "13.2"]
[White "Lodici, Lorenzo"]
[Black "Brunello, Sabino"]
[Result "0-1"]
[ECO "B12"]
[WhiteElo "2565"]
[BlackElo "2515"]
[Annotator "TA"]
[PlyCount "163"]
[EventDate "2024.04.07"]
[EventType "team-tourn"]
[EventCountry "ITA"]
[SourceTitle "playchess.com"]
[Source "ChessBase"]
[SourceQuality "1"]
[TimeControl "40/5400+30:900+30"]

{[%evp 60,163,-70,-64,-69,-57,-48,-44,-39,-40,-39,-37,-29,-20,-13,-21,-10,-33,-21,-69,-41,-38,-16,-24,-22,-57,-8,-8,0,0,0,0,0,0,0,0,0,0,0,0,0,0,0,0,0,0,0,-8,-2,-8,0,0,0,0,0,0,0,0,0,0,0,0,0,0,8,0,0,0,22,22,28,-8,-8,-8,-8,-8,-8,-8,-8,-12849,-197,-12848,-12847,-29942,-29944,-29951,-29952,-29944,-29944,-11873,-4141,-29963,-29964,-29965,-29966,-29964,-29966,-29983,-29972,-29984,-29985,-29985,-29984,-29984,-29985,-29983]} 1. e4 {[%emt 1:27:58]} c6 {[%emt 1:27:56]} 2. d4 {[%emt 0:00:29]} d5 {[%emt 0:00:29]} 3. e5 {[%emt 0:00:29]} Bf5 {[%emt 0:00:28]} 4. Nf3 {[%emt 0:00:28]} e6 {[%emt 0:00:29]} 5. Be2 {[%emt 0:00:29]} Ne7 {[%emt 0:00:29]} 6. Nbd2 {[%emt 0:00:30]} c5 {[%emt 0:00:35]} 7. c3 {[%emt 0:00:29]} Nec6 {[%emt 0:00:33]} 8. Nf1 {[%emt 0:00:29]} Nd7 {[%emt 0:00:31]} 9. Ng3 {[%emt 0:00:33]} Bg6 {[%emt 0:00:28]} 10. O-O {[%emt 0:00:30]} Be7 {[%emt 0:00:31]} 11. Be3 {[%emt 0:00:29]} cxd4 {[%emt 0:00:33]} 12. cxd4 {[%emt 0:00:30]} O-O {[%emt 0:00:29]} 13. Bd3 {[%emt 0:00:40]} Rc8 {[%emt 0:00:44]} 14. Bxg6 {[%emt 0:00:30]} hxg6 {[%emt 0:00:29]} 15. Rc1 {[%emt 0:00:29]} Nb6 {[%emt 0:00:31]} 16. Nd2 {[%emt 0:00:44]} a5 {[%emt 0:00:33]} 17. a3 {[%emt 0:00:33]} a4 {[%emt 0:00:29]} 18. Ne2 {[%emt 0:00:35]} Na5 {[%emt 0:00:29]} 19. Nc3 {[%emt 0:00:28]} Qd7 {[%emt 0:00:29]} 20. Rc2 {[%emt 0:00:31]} Nbc4 {[%emt 0:00:32]} 21. Nxc4 {[%emt 0:00:30]} Nxc4 {[%emt 0:00:34]} 22. Bc1 {[%emt 0:00:31]} b5 {[%emt 0:00:28]} 23. Ne2 {[%emt 0:00:30]} b4 {[%emt 0:00:40]} 24. axb4 {[%emt 0:00:30]} Rb8 {[%emt 0:00:28]} 25. Rc3 {[%emt 0:00:40]} Rxb4 {[%emt 0:00:33]} 26. b3 {[%emt 0:00:29]} axb3 {[%emt 0:01:20]} 27. Rxb3 {[%emt 0:00:29]} Rfb8 {[%emt 0:00:36]} 28. Rxb4 {[%emt 0:00:29]} Rxb4 {[%emt 0:00:30]} 29. Nf4 {[%emt 0:00:38]} Qa4 {[%emt 0:00:40]} 30. Qg4 {[%emt 0:00:31]} Qc2 {[%emt 0:01:02]} 31. Qe2 {[%emt 0:01:25]} Qxe2 {[%emt 0:00:37]} (31... Qc3 {seems wilder.} 32. Qd3 Rb3 33. Rd1 g5) 32. Nxe2 {[%emt 0:00:29]} Rb3 {[%emt 0:00:36]} 33. Rd1 {[%emt 0:00:34]} Bd8 {[%emt 0:00:44]} 34. g3 {[%emt 0:00:39]} g5 {[%emt 0:00:31]} 35. h3 {[%emt 0:00:33]} f6 {[%emt 0:00:32]} 36. exf6 {[%emt 0:00:30]} gxf6 {[%emt 0:00:30]} 37. Kg2 {[%emt 0:00:37]} Kf7 {[%emt 0:00:29]} 38. Ng1 {[%emt 0:00:29]} Rb1 {[%emt 0:00:34]} 39. Nf3 {[%emt 0:00:33]} (39. h4 $11 {should be considered.}) 39... Be7 {[%emt 0:00:40]} 40. Rf1 {[%emt 0:00:35]} Kg6 {[%emt 0:00:30]} 41. g4 {[%emt 0:15:31]} Kf7 {[%emt 0:15:29]} 42. Be3 {[%emt 0:00:42]} Rxf1 {[%emt 0:00:32]} (42... Rb2 $15 43. Bc1 Rc2) 43. Kxf1 $11 {[%emt 0:00:29]} Bd8 {[%emt 0:00:31]} 44. Ke2 {[%emt 0:00:29]} Be7 {[%emt 0:00:29]} 45. Bc1 {[%emt 0:00:29]} Bd8 {[%emt 0:00:30]} 46. Kd3 {[%emt 0:00:29]} Ba5 {[%emt 0:00:30]} 47. Be3 {[%emt 0:00:32]} Nd6 {[%emt 0:00:29]} 48. Ng1 {[%emt 0:00:29]} Nc4 {[%emt 0:00:30]} 49. Ne2 {[%emt 0:00:32]} Be1 {[%emt 0:00:31]} 50. Ng1 {[%emt 0:00:37]} Ba5 {[%emt 0:00:29]} 51. Ne2 {[%emt 0:00:29]} Be1 {[%emt 0:00:29]} 52. Ng1 {[%emt 0:00:32]} Bb4 {[%emt 0:00:29]} 53. Nf3 {[%emt 0:00:29]} Kg6 {[%emt 0:00:30]} 54. h4 {[%emt 0:00:29]} gxh4 {[%emt 0:00:29]} 55. Nxh4+ {[%emt 0:00:29]} Kf7 {[%emt 0:00:28]} 56. f4 {[%emt 0:00:28]} Ba5 {[%emt 0:00:36]} 57. Bc1 {[%emt 0:00:30]} Bb6 {[%emt 0:00:32]} 58. Nf3 {[%emt 0:00:30]} Nd6 {[%emt 0:00:29]} 59. Be3 {[%emt 0:00:39]} Ne4 {[%emt 0:00:33]} 60. Ne1 {[%emt 0:00:29]} Bc7 {[%emt 0:00:30]} 61. Nc2 {[%emt 0:00:29]} e5 {[%emt 0:00:28]} 62. dxe5 {[%emt 0:00:30]} fxe5 {[%emt 0:00:29]} 63. f5 {[%emt 0:00:29]} Ng3 {[%emt 0:00:30]} 64. Nb4 {[%emt 0:00:32]} d4 {[%emt 0:00:30]} 65. Bf2 {[%emt 0:00:31]} e4+ {[%emt 0:00:28]} 66. Kxd4 {[%emt 0:01:02]} Bb6+ 67. Ke5 {[%emt 0:00:00]} Bxf2 {[%emt 0:00:57]} 68. Kf4 {[%emt 0:00:28]} e3 {[%emt 0:00:30]} 69. Nd3 $2 {[%emt 0:00:31][%mdl 8192]} (69. Kf3 $11) 69... Ne2+ $2 {[%emt 0:00:30]} (69... e2 70. Ke5 e1=Q+ (70... e1=B $2 71. g5 $19) 71. Nxe1 Bxe1) 70. Kf3 $2 {[%emt 0:00:30]} (70. Ke4) 70... Nd4+ $19 {[%emt 0:00:28]} 71. Kg2 {[%emt 0:00:31]} Bh4 {[%emt 0:00:30]} 72. Kh3 {[%emt 0:00:35]} Bg5 {[%emt 0:00:33]} 73. Kg3 {[%emt 0:00:31]} e2 {[%emt 0:00:28]} 74. Kf2 {[%emt 0:00:29]} Bd2 {[%emt 0:00:30]} (74... Kf6 $142 75. Kg3 Ke7) 75. Kg3 {[%emt 0:00:31]} Kf6 {[%emt 0:00:28]} 76. Kh4 {[%emt 0:00:30]} e1=Q+ {[%emt 0:00:32]} 77. Nxe1 {[%emt 0:00:29]} Bxe1+ {[%emt 0:00:28]} 78. Kh5 {[%emt 0:00:30]} Nf3 {[%emt 0:00:29]} 79. Kh6 {[%emt 0:00:29]} Bd2+ {[%emt 0:00:30]} 80. Kh5 {[%emt 0:00:28]} Ng5 {[%emt 0:00:31]} 81. Kh6 {[%emt 0:00:30]} Ne4+ {[%emt 0:00:30]} 82. Kh5 {[%emt 0:00:28]} 0-1

[Event "CIS Master Groups 2024"]
[Site "Vasto"]
[Date "2024.04.14"]
[Round "13.3"]
[White "Dvirnyy, Danyyil"]
[Black "Barp, Alberto"]
[Result "1-0"]
[ECO "C47"]
[WhiteElo "2480"]
[BlackElo "2470"]
[Annotator "TA"]
[PlyCount "89"]
[EventDate "2024.04.07"]
[EventType "team-tourn"]
[EventCountry "ITA"]
[SourceTitle "playchess.com"]
[Source "ChessBase"]
[SourceQuality "1"]
[TimeControl "40/5400+30:900+30"]

{[%evp 34,89,82,72,79,69,58,20,13,19,15,0,26,17,8,19,55,-1,22,25,32,14,293,262,243,142,274,283,280,269,948,216,220,208,271,271,271,271,241,208,426,407,1057,1058,5214,1012,5614,5297,2060,2060,29978,29979,29978,29979,29996,29995,29997,29998]} 1. e4 {[%emt 1:27:56]} e5 2. Nf3 {[%emt 0:00:29]} Nc6 {[%emt 1:28:26]} 3. Nc3 {[%emt 0:00:29]} Nf6 {[%emt 0:00:29]} 4. g3 {[%emt 0:00:29]} d5 {[%emt 0:00:52]} 5. exd5 {[%emt 0:00:29]} Nxd5 {[%emt 0:00:28]} 6. Bg2 {[%emt 0:00:29]} Nxc3 {[%emt 0:00:31]} 7. bxc3 {[%emt 0:00:29]} Bd6 {[%emt 0:00:37]} 8. O-O {[%emt 0:00:30]} O-O {[%emt 0:00:29]} 9. d3 {[%emt 0:00:34]} h6 {[%emt 0:00:31] C47: Scotch Four Knights and Four Knights with 4 g3.} 10. Rb1 {[%emt 0:00:29]} Rb8 {[%emt 0:00:41]} 11. Nd2 {[%emt 0:00:30]} Be6 {[%emt 0:00:31]} 12. a4 $146 {[%emt 0:00:29]} ({Predecessor:} 12. c4 Qd7 13. Bb2 b5 14. cxb5 Rxb5 15. Nb3 Bh3 16. Bxh3 Qxh3 17. Qf3 Qd7 18. c4 {½-½ Zhou,Y (2455)-Howell,D (2693) GBR-ch KO London 2015 (1.2)}) 12... Qd7 {[%emt 0:00:34]} 13. Ne4 {[%emt 0:00:34]} Bh3 {[%emt 0:00:45]} 14. Bxh6 {[%emt 0:00:39]} Bxg2 {[%emt 0:00:46]} 15. Kxg2 {[%emt 0:00:32]} Be7 {[%emt 0:00:52]} 16. Bg5 {[%emt 0:00:47]} f6 {[%emt 0:00:34]} 17. Bc1 {[%emt 0:00:39]} f5 {[%emt 0:00:30]} 18. Nd2 {[%emt 0:00:29]} Nd8 {[%emt 0:00:37]} 19. Rb5 {[%emt 0:00:57]} Nf7 {[%emt 0:00:36]} 20. Nc4 {[%emt 0:00:32]} a6 {[%emt 0:00:51]} 21. Rb3 {[%emt 0:01:00]} (21. Nxe5 $2 Qe6 22. Nxf7 axb5 $19) 21... Qxa4 {[%emt 0:00:31]} 22. Qf3 {[%emt 0:00:32]} Qd7 {[%emt 0:00:33]} (22... b5 23. Ne3 e4 24. Qxf5 $18) 23. Re1 {[%emt 0:00:40]} (23. Rxb7 $2 e4 24. dxe4 Rxb7 $19) 23... Bf6 {[%emt 0:00:32]} 24. Ne3 {[%emt 0:00:33]} (24. Rxb7 $2 e4 25. dxe4 fxe4 (25... Rxb7 26. e5 $17) 26. Rxe4 (26. Qxe4 $2 Rbe8 $19) 26... Rxb7 $19) 24... g6 {[%emt 0:00:36]} 25. Ba3 {[%emt 0:00:56]} (25. Rxb7 $2 e4 26. dxe4 Ng5 (26... Rxb7 27. e5 $15) 27. Rxb8 Nxf3 28. Rxf8+ Kxf8 29. Kxf3 Qc6 $19 (29... Bxc3 $2 30. Rd1 $19)) (25. Nd5 $14 Bg7 26. h4) 25... Rfd8 {[%emt 0:00:32]} 26. h4 {[%emt 0:00:42]} (26. Rxb7 $2 e4 27. dxe4 Ng5 $19 (27... Rxb7 $2 28. exf5 Rb6 29. c4 $19)) 26... b5 {[%emt 0:00:30]} 27. c4 {[%emt 0:00:33]} e4 $2 {[%emt 0:00:30][%mdl 8192]} (27... c6 $11) 28. dxe4 $18 {[%emt 0:00:30]} Ne5 {[%emt 0:00:32]} 29. Qe2 {[%emt 0:00:30]} (29. Qf4 $18 Nxc4 30. Nxc4 (30. exf5 Qc6+ 31. Kg1 Rd4 $11) 30... bxc4 31. Rxb8 Rxb8 32. exf5 Qd5+ 33. Qe4 Qxe4+ 34. Rxe4 gxf5 35. Rxc4) 29... Nxc4 {[%emt 0:00:37]} (29... Qc6 $16 {is a better defense.} 30. Nd5 Nxc4) 30. Nxc4 $18 {[%emt 0:00:29]} bxc4 {[%emt 0:00:36]} 31. Qxc4+ {[%emt 0:00:30]} Kg7 $2 {[%emt 0:00:37]} (31... Qf7 32. Qxa6 Rxb3 33. cxb3 fxe4 34. Rxe4 Kg7) 32. Qxa6 $2 {[%emt 0:00:42]} (32. e5 Rxb3 33. exf6+ (33. cxb3 Qd5+ 34. Qxd5 Rxd5 $18) (33. Qxb3 Be7 $18) 33... Kxf6 34. Be7+ (34. cxb3 Qd5+ 35. Qxd5 Rxd5 $18) (34. Qxa6+ Rb6 $15) 34... Qxe7 35. Rxe7 Rxg3+ 36. Kxg3 (36. fxg3 Kxe7 37. Qxc7+ Rd7 $18) 36... Kxe7 37. Qxc7+ (37. Qxa6 Rd6 $18) 37... Rd7 38. Qc5+ Rd6 39. Kf4) 32... Rxb3 $18 {[%emt 0:00:35]} 33. cxb3 {[%emt 0:00:29]} fxe4 {[%emt 0:00:29]} 34. Rxe4 {[%emt 0:00:29]} Qd5 {[%emt 0:00:34]} 35. Qc4 {[%emt 0:00:30]} c6 {[%emt 0:00:30]} 36. Kh2 {[%emt 0:00:36]} Qf5 $2 {[%emt 0:00:30]} (36... Qxc4 37. bxc4 (37. Rxc4 Rd3 $18) 37... Kf7) 37. Rf4 $18 {[%emt 0:00:29]} (37. Qxc6 {is a self mate.} Qxf2+ 38. Kh3 Qf1+ 39. Kh2 Rd2+) 37... Qe5 {[%emt 0:00:32]} (37... Qd5 $142 38. Qc2 g5) 38. Qxc6 $18 {[%emt 0:00:32]} Rd1 {[%emt 0:00:31]} 39. Qf3 {[%emt 0:00:39]} Qe1 {[%emt 0:00:30]} 40. Rxf6 {[%emt 0:00:31]} Qg1+ {[%emt 0:00:29]} 41. Kh3 {[%emt 0:15:28]} Qf1+ {[%emt 0:15:30]} 42. Kg4 {[%emt 0:00:29]} Rd4+ {[%emt 0:00:31]} 43. Rf4 {[%emt 0:00:29]} Rd5 {[%emt 0:00:29]} 44. Bb2+ {[%emt 0:00:29]} Kh7 {[%emt 0:00:30]} 45. Rf7+ {[%emt 0:00:29]} 1-0

[Event "CIS Master Groups 2024"]
[Site "Vasto"]
[Date "2024.04.14"]
[Round "13.4"]
[White "Cappelletto, Joshuaede"]
[Black "Gilevych, Artem"]
[Result "0-1"]
[ECO "C24"]
[WhiteElo "2306"]
[BlackElo "2417"]
[Annotator "TA"]
[PlyCount "142"]
[EventDate "2024.04.07"]
[EventType "team-tourn"]
[EventCountry "ITA"]
[SourceTitle "playchess.com"]
[Source "ChessBase"]
[SourceQuality "1"]
[TimeControl "40/5400+30:900+30"]

{[%evp 45,142,-104,-20,-79,-80,-127,-131,-127,-127,-141,-102,-100,-100,-95,-99,-92,-91,-92,-95,-103,-90,-102,-99,-99,-85,-85,-85,-85,-83,-85,-86,-90,-78,-83,-79,-83,-86,-99,-69,-69,-77,-72,-75,-100,-73,-86,-75,-377,-375,-377,-336,-336,-336,-326,-283,-274,-238,-416,-407,-510,-509,-632,-601,-794,-776,-787,-756,-788,-765,-1601,-1622,-1720,-1622,-1720,-1664,-1754,-1582,-1787,-1499,-1757,-1325,-3671,-1923,-29973,-29974,-29969,-29971,-6528,-2281,-29981,-29982,-29982,-29982,-29982,-29983,-29983,-29984,-29985,-29986]} 1. e4 {[%emt 1:27:58]} e5 {[%emt 1:27:56]} 2. Bc4 {[%emt 0:00:35]} Nf6 {[%emt 0:00:30]} 3. d3 {[%emt 0:00:28]} c6 {[%emt 0:00:30]} 4. Bb3 {[%emt 0:00:30]} d5 {[%emt 0:00:29]} 5. Nf3 {[%emt 0:00:29]} a5 {[%emt 0:00:30]} 6. a4 {[%emt 0:00:29] C24: Bishop's Opening: 2...Nf6.} Bb4+ {[%emt 0:00:31]} 7. c3 {[%emt 0:00:29]} Bd6 {[%emt 0:00:30]} 8. Bg5 {[%emt 0:00:31]} dxe4 {[%emt 0:00:53]} 9. dxe4 {[%emt 0:00:29]} h6 {[%emt 0:00:38]} 10. Bxf6 {[%emt 0:00:31]} Qxf6 {[%emt 0:00:29]} 11. Nbd2 {[%emt 0:00:32]} O-O $146 {[%emt 0:00:39]} ({Predecessor:} 11... Bg4 12. Qe2 Nd7 13. h3 Bh5 14. O-O Rd8 15. Rad1 Nc5 16. Bc2 Ne6 17. g3 O-O 18. Kg2 Qg6 19. Kh2 Bc7 20. Bb3 Qg5 21. g4 Qf4+ 22. Kg2 Bxg4 {0-1 Le Roux,J-Bulgarini Torre,M (2160) W-ch WS/O/404 email 2010}) 12. O-O {[%emt 0:00:33]} Na6 {[%emt 0:00:31]} 13. h3 {[%emt 0:00:30]} Bc7 {[%emt 0:00:40]} 14. Qe2 {[%emt 0:00:34]} Nc5 {[%emt 0:00:35]} 15. Bc2 {[%emt 0:00:29]} Ne6 {[%emt 0:00:33]} 16. Qe3 {[%emt 0:00:46]} Nf4 {[%emt 0:01:01]} 17. Kh1 {[%emt 0:00:56]} Rd8 {[%emt 0:00:47]} 18. Rad1 {[%emt 0:00:35]} b6 {[%emt 0:00:58]} 19. c4 {[%emt 0:00:44]} Be6 {[%emt 0:00:34]} 20. b3 {[%emt 0:00:32]} Qg6 {[%emt 0:00:35]} 21. Nh4 {[%emt 0:00:33]} Qg5 {[%emt 0:00:34]} 22. Ndf3 {[%emt 0:00:38]} Qf6 {[%emt 0:00:33]} 23. Nf5 {[%emt 0:00:33]} Kh7 {[%emt 0:00:35]} (23... g6 $17 24. Ng3 b5 25. Rxd8+ Qxd8 (25... Bxd8 26. Rb1 $17) (25... Rxd8 26. axb5 cxb5 27. c5 $17)) 24. Ng3 {[%emt 0:01:13]} (24. g3 $11 {keeps the balance.} Nxh3 25. Kg2) 24... g6 $17 {[%emt 0:00:38]} 25. Rd2 {[%emt 0:00:37]} (25. Ne2 $142) 25... Rxd2 $17 {[%emt 0:00:30]} 26. Nxd2 {[%emt 0:00:29]} Rd8 {[%emt 0:00:34]} 27. Nf3 {[%emt 0:00:37]} Bc8 {[%emt 0:00:31]} 28. Ne2 {[%emt 0:00:34]} Ne6 {[%emt 0:00:35]} 29. Rd1 {[%emt 0:00:40]} Rxd1+ {[%emt 0:00:29]} 30. Bxd1 {[%emt 0:00:28]} Qd8 {[%emt 0:00:29]} 31. Bc2 {[%emt 0:00:30]} Bd6 {[%emt 0:00:30]} 32. Qc3 {[%emt 0:00:38]} Qc7 {[%emt 0:00:28]} 33. Nc1 {[%emt 0:00:32]} f6 {[%emt 0:00:30]} 34. Nd3 {[%emt 0:00:34]} Nc5 {[%emt 0:00:28]} 35. Nxc5 {[%emt 0:00:30]} Bxc5 {[%emt 0:00:29]} 36. Qd2 {[%emt 0:00:31]} Qd6 {[%emt 0:00:30]} 37. Qe2 {[%emt 0:00:30]} Kg7 {[%emt 0:00:31]} 38. Kh2 {[%emt 0:00:30]} Bb4 {[%emt 0:00:31]} 39. g3 {[%emt 0:00:30]} Qe6 {[%emt 0:00:29]} 40. Ng1 {[%emt 0:00:32]} Qd7 {[%emt 0:00:29]} 41. Kg2 {[%emt 0:15:30]} Qd2 {[%emt 0:15:30]} 42. Qxd2 {[%emt 0:00:32]} Bxd2 {[%emt 0:00:29]} 43. Kf1 {[%emt 0:00:29]} Bb4 {[%emt 0:00:31]} 44. Ke2 {[%emt 0:00:31]} Bc5 {[%emt 0:00:28]} 45. Kf3 {[%emt 0:00:32]} h5 {[%emt 0:00:29]} 46. Ne2 $2 {[%emt 0:00:30][%mdl 8192]} (46. Kg2 $17 {is more resistant.}) 46... Bxh3 $19 {[%emt 0:00:30]} 47. Nc3 {[%emt 0:00:29]} Bg4+ {[%emt 0:00:30]} 48. Kg2 {[%emt 0:00:29]} Bd4 {[%emt 0:00:30]} 49. Nb1 {[%emt 0:00:29]} Be6 {[%emt 0:00:31]} 50. Nd2 {[%emt 0:00:29]} Kf7 {[%emt 0:00:29]} 51. f3 $2 {[%emt 0:00:31]} (51. Nf3) 51... Ke7 $19 {[%emt 0:00:29]} 52. Kf1 {[%emt 0:00:29]} Kd6 {[%emt 0:00:28]} 53. Ke2 {[%emt 0:00:30]} g5 {[%emt 0:00:54]} 54. Nf1 {[%emt 0:00:33]} h4 {[%emt 0:00:06]} 55. gxh4 gxh4 {[%emt 0:00:28]} 56. Nh2 {[%emt 0:00:58]} Kc5 {[%emt 0:00:30]} 57. Ng4 {[%emt 0:00:37]} Bxg4 {[%emt 0:00:30]} 58. fxg4 {[%emt 0:00:29]} Kb4 {[%emt 0:00:28]} 59. Kf3 {[%emt 0:00:30]} Kc3 {[%emt 0:00:29]} 60. Bd1 {[%emt 0:00:29]} Kd2 {[%emt 0:00:29]} 61. Be2 {[%emt 0:00:31]} h3 {[%emt 0:00:33]} 62. Bf1 {[%emt 0:00:28]} Kc2 {[%emt 0:00:30]} 63. c5 {[%emt 0:00:33]} Bxc5 {[%emt 0:00:31]} 64. Bc4 {[%emt 0:00:28]} h2 {[%emt 0:00:31]} 65. Kg2 {[%emt 0:00:29]} Bg1 {[%emt 0:00:29]} 66. Be6 {[%emt 0:00:30]} Kd3 {[%emt 0:00:32]} (66... b5 $142 67. g5 fxg5) 67. Bd7 {[%emt 0:00:29]} Kxe4 {[%emt 0:00:29]} 68. Bxc6+ {[%emt 0:00:29]} Kf4 {[%emt 0:00:29]} 69. Bd7 {[%emt 0:00:29]} e4 {[%emt 0:00:29]} 70. Bc8 {[%emt 0:00:30]} Ke3 {[%emt 0:00:34]} 71. Ba6 {[%emt 0:00:31]} Kd2 {[%emt 0:00:29]} 0-1